lending/lending_fUSD_20260325
["ID","MTS","AMOUNT","RATE_DAILY","PERIOD"]
[408900032,1774417182516,-621.38713532,0.00013396,2]
[408900033,1774417182549,-621.38713532,0.00013396,2]
[408900034,1774417182658,-621.38713532,0.00013396,2]
[408900035,1774417182694,-621.38713532,0.00013396,2]
[408900036,1774417182728,-621.38713532,0.00013396,2]
[408900037,1774417182764,-621.38713532,0.00013396,2]
[408900038,1774417182804,-621.38713532,0.00013396,2]
[408900039,1774417182839,-621.38713532,0.00013396,2]
[408900040,1774417182873,-744.61424167,0.00013396,2]
[408900041,1774417182970,-1054.13589282,0.00013396,2]
[408900042,1774417183004,-1798.75013449,0.00013396,2]
[408900043,1774417183325,-1798.75013449,0.00013396,2]
[408900044,1774417183620,-1346.39190458,0.00013396,2]
[408900045,1774417183647,-452.35822991,0.00013396,2]
[408900046,1774417183656,-244.37944649,0.00013396,2]
[408900047,1774417185581,-1554.370688,0.00013396,2]
[408900048,1774417185613,-1798.75013449,0.00013396,2]
[408900049,1774417185644,-1495.01822053,0.00013396,2]
[408900050,1774417185702,-303.73191396,0.00013396,2]
[408900051,1774417185739,-1798.75013449,0.00013396,2]
[408900052,1774417185773,-1798.75013449,0.00013396,2]
[408900053,1774417185805,-1006.25932755,0.00013396,2]
[408900054,1774417185867,-792.49080694,0.00013396,2]
[408900055,1774417191376,-1798.75013449,0.00013396,2]
[408900056,1774417191407,-1798.75013449,0.00013396,2]
[408900057,1774417191439,-1006.25932755,0.00013396,2]
[408900058,1774417191502,-792.49080694,0.00013396,2]
[408900059,1774417191616,-1798.75013449,0.00013396,2]
[408900060,1774417191648,-1798.75013449,0.00013396,2]
[408900061,1774417191679,-1006.25932755,0.00013396,2]
[408900062,1774417191729,-792.49080694,0.00013396,2]
[408900063,1774417194559,-1798.75013449,0.00013396,2]
[408900064,1774417194596,-1798.75013449,0.00013396,2]
[408900065,1774417194630,-1006.25932755,0.00013396,2]
[408900066,1774417194684,-792.49080694,0.00013396,2]
[408900067,1774417194719,-1798.75013449,0.00013396,2]
[408900068,1774417194752,-1798.75013449,0.00013396,2]
[408900069,1774417194787,-1006.25932755,0.00013396,2]
[408900070,1774417194843,-792.49080694,0.00013396,2]
[408900071,1774417194884,-1798.75013449,0.00013396,2]
[408900072,1774417194916,-1798.75013449,0.00013396,2]
[408900073,1774417194949,-1006.25932755,0.00013396,2]
[408900074,1774417195001,-792.49080694,0.00013396,2]
[408900075,1774417195499,-1798.75013449,0.00013396,2]
[408900076,1774417195531,-1798.75013449,0.00013396,2]
[408900077,1774417195565,-1006.25932755,0.00013396,2]
[408900078,1774417196456,-792.49080694,0.00013396,2]
[408900079,1774417197475,-157.55677702,0.00013396,2]
[408900080,1774417283546,1256.98,0.00011507,2]
[408900081,1774417293523,3010.94982742,0.00013373,2]
[408900082,1774417321728,300.0,0.00013395,2]
[408900083,1774417322214,150.0,0.00013395,2]
[408900084,1774417351141,-1200.0,0.00013396,2]
[408900085,1774417351170,-200.0,0.00013396,2]
[408900086,1774417351275,-2482.08017258,0.00013396,2]
[408900087,1774417351413,-10000.01,0.00013396,2]
[408900088,1774417351670,-3413.80714522,0.00013396,2]
[408900089,1774417351711,-3172.39570956,0.00013396,2]
[408900090,1774417351840,-15.81275424,0.00013396,2]
[408900091,1774417351868,-293.17693422,0.00013396,2]
[408900092,1774417351919,-9382.03062308,0.00013397,2]
[408900093,1774417357546,-4584.04753088,0.00013373,2]
[408900094,1774417357598,-831.91493824,0.00013373,2]
[408900095,1774417363257,-10000.01,0.00013397,2]
[408900096,1774417428320,3304.99,0.00012647,2]
[408900097,1774417546138,-214.4442,0.00013297,2]
[408900098,1774417546160,-772.61896303,0.00013299,2]
[408900099,1774417735376,5000.01,0.0001253,2]
[408900100,1774417735397,5000.01,0.0001253,2]
[408900101,1774417735418,3556.77,0.0001253,2]
[408900102,1774417753167,1180.0,0.000105,5]
[408900103,1774417788787,150.0,0.00012536,2]
[408900104,1774417797502,150.0,0.0001251,2]
[408900106,1774417832135,-200.0,0.000128,4]
[408900107,1774417832144,-100.5512941,0.000129,4]
[408900108,1774417832197,-299.4487059,0.000129,4]
[408900109,1774417832206,-6833.2263,0.00013296,2]
[408900110,1774417832216,-1200.0,0.00013296,2]
[408900111,1774417832225,-5374.22770706,0.00013297,2]
[408900112,1774417832235,-374.61866059,0.000133,2]
[408900113,1774417832244,-733.98991808,0.000133,2]
[408900114,1774417832254,-807.21546653,0.000133,2]
[408900115,1774417832264,-828.89492483,0.000133,2]
[408900116,1774417832273,-500.0,0.00013373,2]
[408900117,1774417832283,-198.39780813,0.00013373,2]
[408900118,1774417832292,-500.0,0.00013373,2]
[408900119,1774417832301,-7688.14588223,0.00013373,2]
[408900120,1774417832310,-30692.607181,0.00013394,2]
[408900121,1774417832319,-150.0,0.00013394,2]
[408900122,1774417832328,-3389.5977504,0.00013395,2]
[408900123,1774417832337,-151.0,0.00013395,2]
[408900124,1774417832346,-500.0,0.00013396,2]
[408900125,1774417832355,-500.0,0.00013396,2]
[408900126,1774417832364,-500.0,0.00013396,2]
[408900127,1774417832373,-500.0,0.00013396,2]
[408900128,1774417832382,-500.0,0.00013396,2]
[408900129,1774417832391,-451.23932912,0.00013396,2]
[408900130,1774417832400,-500.0,0.00013396,2]
[408900131,1774417832409,-500.0,0.00013396,2]
[408900132,1774417832418,-500.0,0.00013396,2]
[408900133,1774417832427,-500.0,0.00013396,2]
[408900134,1774417832435,-500.0,0.00013396,2]
[408900135,1774417832445,-500.0,0.00013396,2]
[408900136,1774417832454,-500.0,0.00013396,2]
[408900137,1774417832463,-500.0,0.00013396,2]
[408900138,1774417832472,-500.0,0.00013396,2]
[408900139,1774417832491,-500.0,0.00013396,2]
[408900140,1774417832501,-500.0,0.00013396,2]
[408900141,1774417832510,-500.0,0.00013396,2]
[408900142,1774417832519,-165.91116936,0.00013396,2]
[408900143,1774417832528,-150.0,0.00013396,2]
[408900144,1774417832537,-195.45128948,0.00013396,2]
[408900145,1774417832547,-151.0,0.00013396,2]
[408900146,1774417832556,-164.25822179,0.00013396,2]
[408900147,1774417832566,-151771.57763512,0.00013397,2]
[408900148,1774417832579,-40091.91006341,0.00013397,2]
[408900149,1774417832590,-16132.26792847,0.00013397,2]
[408900156,1774417838590,-4497.20121288,0.00013397,2]
[408900157,1774417838601,-1255.9964185,0.00013397,2]
[408900158,1774417838615,-53956.12144033,0.00013397,2]
[408900169,1774417840246,-787.67,0.00013397,2]
[408900180,1774417840355,-187543.27707821,0.00013397,2]
[408900181,1774417840364,-200.0,0.00013397,2]
[408900182,1774417840373,-151.0,0.000134,2]
[408900183,1774417840382,-500.0,0.00013473,2]
[408900184,1774417840392,-500.0,0.00013473,2]
[408900185,1774417840401,-500.0,0.00013473,2]
[408900186,1774417840410,-161.49108402,0.00013473,2]
[408900187,1774417840419,-501.9381961,0.00013473,2]
[408900188,1774417840429,-500.04087685,0.00013473,2]
[408900189,1774417840438,-500.0,0.00013473,2]
[408900190,1774417840447,-500.0,0.00013473,2]
[408900191,1774417840456,-171.43430839,0.00013473,2]
[408900192,1774417840465,-160.25340111,0.00013473,2]
[408900193,1774417840475,-504.27664623,0.00013473,2]
[408900194,1774417840484,-150.0,0.0001348,2]
[408900195,1774417840496,-151.0,0.00013481,2]
[408900196,1774417840505,-500.0,0.00013481,2]
[408900197,1774417840514,-151.0,0.00013481,2]
[408900198,1774417840523,-500.0,0.00013481,2]
[408900199,1774417840532,-151.0,0.00013481,2]
[408900200,1774417840541,-500.0,0.00013481,2]
[408900201,1774417840550,-200.0,0.00013481,2]
[408900202,1774417840559,-500.0,0.00013481,2]
[408900203,1774417840567,-151.0,0.00013481,2]
[408900204,1774417840576,-500.0,0.00013481,2]
[408900205,1774417840585,-151.0,0.00013481,2]
[408900206,1774417840594,-151.0,0.00013481,2]
[408900207,1774417840603,-500.0,0.00013481,2]
[408900208,1774417840612,-151.0,0.00013481,2]
[408900209,1774417840621,-500.0,0.00013481,2]
[408900210,1774417840630,-501.77371947,0.00013481,2]
[408900211,1774417840639,-151.0,0.00013481,2]
[408900212,1774417840648,-500.0,0.00013481,2]
[408900213,1774417840657,-151.0,0.00013481,2]
[408900214,1774417840666,-500.0,0.00013481,2]
[408900215,1774417840675,-151.0,0.00013481,2]
[408900216,1774417840684,-500.0,0.00013481,2]
[408900217,1774417840693,-151.0,0.00013481,2]
[408900218,1774417840702,-500.0,0.00013481,2]
[408900219,1774417840711,-151.0,0.00013481,2]
[408900220,1774417840720,-151.0,0.00013481,2]
[408900221,1774417840730,-151.0,0.00013481,2]
[408900222,1774417840739,-151.0,0.00013481,2]
[408900223,1774417840748,-500.0,0.00013481,2]
[408900224,1774417840757,-151.0,0.00013481,2]
[408900225,1774417840767,-500.0,0.00013481,2]
[408900226,1774417840776,-175.19989913,0.00013481,2]
[408900227,1774417840785,-500.0,0.00013481,2]
[408900228,1774417840794,-500.0,0.00013481,2]
[408900229,1774417840803,-500.0,0.00013481,2]
[408900230,1774417840812,-151.0,0.00013481,2]
[408900231,1774417840821,-980.08,0.00013481,2]
[408900232,1774417840830,-151.0,0.00013486,2]
[408900233,1774417840839,-500.0,0.00013488,2]
[408900234,1774417840848,-10767.19,0.00013496,2]
[408900235,1774417840857,-14574.38,0.00013496,2]
[408900236,1774417840866,-32991.3775,0.00013497,2]
[408900237,1774417840875,-1000.0,0.00013497,2]
[408900238,1774417840885,-195.45128947,0.00013498,2]
[408900239,1774417840894,-200.0,0.0001353,2]
[408900240,1774417840903,-200.0,0.00013531,2]
[408900241,1774417840912,-5374.22770706,0.00013586,2]
[408900242,1774417840921,-19466.23599352,0.00013596,2]
[408900243,1774417840930,-418.0,0.000136,2]
[408900244,1774417840939,-195.45128947,0.000136,2]
[408900245,1774417840948,-412.0,0.00013631,2]
[408900246,1774417840958,-523.0,0.00013643,2]
[408900247,1774417840970,-7688.14588221,0.00013654,2]
[408900248,1774417840979,-200.0,0.00013665,2]
[408900249,1774417840988,-516.15405713,0.00013698,2]
[408900250,1774417840997,-500.0,0.00013698,2]
[408900251,1774417841008,-500.0,0.00013698,2]
[408900252,1774417841017,-500.0,0.00013698,2]
[408900253,1774417841026,-500.0,0.00013698,2]
[408900254,1774417841035,-500.0,0.00013698,2]
[408900255,1774417841044,-500.0,0.00013698,2]
[408900256,1774417841053,-500.0,0.00013698,2]
[408900257,1774417841062,-500.0,0.00013698,2]
[408900258,1774417841071,-500.0,0.00013698,2]
[408900259,1774417841080,-500.0,0.00013698,2]
[408900260,1774417841089,-447.86798038,0.00013698,2]
[408900261,1774417841098,-500.0,0.00013698,2]
[408900262,1774417841107,-500.0,0.00013698,2]
[408900263,1774417841116,-553.10600438,0.00013698,2]
[408900264,1774417841125,-519.01013968,0.00013698,2]
[408900265,1774417841134,-500.0,0.00013698,2]
[408900266,1774417841143,-500.0,0.00013698,2]
[408900267,1774417841153,-500.0,0.00013698,2]
[408900268,1774417841162,-500.0,0.00013698,2]
[408900269,1774417841172,-500.0,0.00013698,2]
[408900270,1774417841180,-500.0,0.00013698,2]
[408900271,1774417841189,-500.0,0.00013698,2]
[408900272,1774417841198,-638.95886171,0.00013698,2]
[408900273,1774417841207,-500.0,0.00013698,2]
[408900274,1774417841216,-500.0,0.00013698,2]
[408900275,1774417841225,-500.0,0.00013698,2]
[408900276,1774417841234,-500.0,0.00013698,2]
[408900277,1774417841244,-500.0,0.00013698,2]
[408900278,1774417841253,-500.0,0.00013698,2]
[408900279,1774417841262,-500.0,0.00013698,2]
[408900280,1774417841271,-515.02634622,0.00013698,2]
[408900281,1774417841279,-500.0,0.00013698,2]
[408900282,1774417841288,-516.00659429,0.00013698,2]
[408900283,1774417841297,-500.0,0.00013698,2]
[408900284,1774417841307,-500.0,0.00013698,2]
[408900285,1774417841316,-500.0,0.00013698,2]
[408900286,1774417841325,-500.0,0.00013698,2]
[408900287,1774417841334,-500.0,0.00013698,2]
[408900288,1774417841343,-500.0,0.00013698,2]
[408900289,1774417841352,-500.0,0.00013698,2]
[408900290,1774417841361,-500.0,0.00013698,2]
[408900291,1774417841370,-385.92546908,0.00013698,2]
[408900292,1774417841380,-1169.71,0.00013699,2]
[408900293,1774417841389,-3300.19,0.000137,2]
[408900294,1774417841398,-3164.72,0.000137,2]
[408900295,1774417841407,-2987.17,0.000137,2]
[408900296,1774417841416,-578.20924308,0.00013741,2]
[408900297,1774417841425,-721.12765535,0.00013741,2]
[408900298,1774417841434,-151.0,0.00013741,2]
[408900299,1774417841443,-500.0,0.00013741,2]
[408900300,1774417841451,-500.0,0.00013741,2]
[408900301,1774417841461,-500.0,0.00013741,2]
[408900302,1774417841470,-500.0,0.00013741,2]
[408900303,1774417841478,-500.0,0.00013741,2]
[408900304,1774417841487,-500.0,0.00013741,2]
[408900305,1774417841496,-500.0,0.00013741,2]
[408900306,1774417841505,-250.0,0.00013741,2]
[408900307,1774417841514,-500.0,0.00013741,2]
[408900308,1774417841523,-151.0,0.00013741,2]
[408900309,1774417841532,-250.0,0.00013741,2]
[408900310,1774417841541,-500.0,0.00013741,2]
[408900311,1774417841550,-250.0,0.00013741,2]
[408900312,1774417841559,-500.0,0.00013741,2]
[408900313,1774417841568,-250.0,0.00013741,2]
[408900314,1774417841577,-500.0,0.00013741,2]
[408900315,1774417841586,-250.0,0.00013741,2]
[408900316,1774417841595,-500.0,0.00013741,2]
[408900317,1774417841604,-250.0,0.00013741,2]
[408900318,1774417841613,-174.61919141,0.00013741,2]
[408900319,1774417841621,-250.0,0.00013741,2]
[408900320,1774417841630,-250.0,0.00013741,2]
[408900321,1774417841639,-250.0,0.00013741,2]
[408900322,1774417841648,-314.54785769,0.00013741,2]
[408900323,1774417841657,-200.0,0.00013741,2]
[408900324,1774417841665,-771.01748645,0.00013741,2]
[408900325,1774417841675,-290.26104003,0.00013741,2]
[408900326,1774417841684,-980.08,0.00013755,2]
[408900327,1774417841693,-1600.0,0.00013759,2]
[408900328,1774417841702,-314.20863788,0.00013762,2]
[408900329,1774417841711,-500.0,0.00013796,2]
[408900330,1774417841720,-151.0,0.00013796,2]
[408900331,1774417841729,-200.0,0.00013802,2]
[408900332,1774417841738,-500.0,0.00013851,2]
[408900333,1774417841747,-151.0,0.00013851,2]
[408900334,1774417841755,-5374.22770706,0.00013875,2]
[408900335,1774417841764,-500.0,0.00013906,2]
[408900336,1774417841773,-151.0,0.00013906,2]
[408900337,1774417841783,-1000.0,0.00013921,2]
[408900338,1774417841792,-1000.0,0.00013921,2]
[408900339,1774417841801,-294.2387054,0.00013921,2]
[408900340,1774417841811,-7688.14588221,0.00013935,2]
[408900341,1774417841820,-380.414142,0.00013935,2]
[408900342,1774417841830,-380.414142,0.00013935,2]
[408900343,1774417841839,-380.414142,0.00013935,2]
[408900344,1774417841848,-380.414142,0.00013935,2]
[408900345,1774417841857,-200.0,0.0001394,2]
[408900346,1774417841866,-224.62289463,0.00013952,2]
[408900347,1774417841875,-500.0,0.00013961,2]
[408900348,1774417841884,-151.0,0.00013961,2]
[408900349,1774417841894,-630.63689132,0.00013985,2]
[408900350,1774417841904,-208.32,0.00013989,2]
[408900351,1774417841913,-260.218818,0.00014,2]
[408900352,1774417841922,-151.0,0.00014,2]
[408900353,1774417841931,-151.0,0.00014,2]
[408900354,1774417841941,-151.0,0.00014,2]
[408900355,1774417841951,-151.0,0.00014,2]
[408900356,1774417841960,-432.60864,0.00014,2]
[408900357,1774417841971,-432.60864,0.00014,2]
[408900358,1774417841980,-432.60864,0.00014,2]
[408900359,1774417841990,-432.60864,0.00014,2]
[408900360,1774417841999,-508.0,0.00014,2]
[408900361,1774417842009,-151.0,0.00014,2]
[408900362,1774417842018,-151.0,0.00014,2]
[408900363,1774417842028,-508.0,0.00014,2]
[408900364,1774417842039,-301.565904,0.00014,2]
[408900365,1774417842050,-301.565904,0.00014,2]
[408900366,1774417842059,-301.565904,0.00014,2]
[408900367,1774417842069,-151.0,0.00014,2]
[408900368,1774417842078,-301.565904,0.00014,2]
[408900369,1774417842087,-508.0,0.00014,2]
[408900370,1774417842096,-500.0,0.00014016,2]
[408900371,1774417842106,-151.0,0.00014016,2]
[408900372,1774417842115,-1091.77442886,0.00014021,2]
[408900373,1774417842125,-1000.0,0.00014021,2]
[408900374,1774417842134,-1011.45325167,0.00014021,2]
[408900375,1774417842143,-1000.0,0.00014021,2]
[408900376,1774417842152,-1000.0,0.00014021,2]
[408900377,1774417842161,-151.0,0.00014021,2]
[408900378,1774417842170,-393.060209,0.00014021,2]
[408900379,1774417842179,-393.060209,0.00014021,2]
[408900380,1774417842189,-393.060209,0.00014021,2]
[408900381,1774417842198,-177.909961,0.00014021,2]
[408900382,1774417842207,-177.909961,0.00014021,2]
[408900383,1774417842216,-393.060209,0.00014021,2]
[408900384,1774417842225,-177.909961,0.00014021,2]
[408900385,1774417842234,-177.909961,0.00014021,2]
[408900386,1774417842245,-819.932307,0.00014021,2]
[408900387,1774417842255,-819.932307,0.00014021,2]
[408900388,1774417842264,-819.932307,0.00014021,2]
[408900389,1774417842274,-819.932307,0.00014021,2]
[408900390,1774417842283,-980.08,0.00014028,2]
[408900391,1774417842292,-200.0,0.00014029,2]
[408900392,1774417842301,-500.0,0.00014071,2]
[408900393,1774417842310,-151.0,0.00014071,2]
[408900394,1774417842319,-243.62271831,0.0001408,2]
[408900395,1774417842329,-607.13105687,0.0001408,2]
[408900396,1774417842338,-1500.0,0.00014082,2]
[408900397,1774417842347,-1200.0,0.00014082,2]
[408900398,1774417842356,-150.0,0.000141,2]
[408900399,1774417842366,-265.65,0.00014108,2]
[408900400,1774417842375,-208.08,0.0001411,2]
[408900401,1774417842384,-500.0,0.00014115,2]
[408900402,1774417842393,-250.0,0.00014115,2]
[408900403,1774417842402,-60000.0,0.00014115,2]
[408900404,1774417842411,-500.0,0.00014126,2]
[408900405,1774417842420,-151.0,0.00014126,2]
[408900406,1774417842429,-5374.22770706,0.00014165,2]
[408900407,1774417842438,-500.0,0.00014181,2]
[408900408,1774417842447,-151.0,0.00014181,2]
[408900409,1774417842456,-7688.14588221,0.00014215,2]
[408900410,1774417842466,-500.0,0.00014236,2]
[408900411,1774417842475,-151.0,0.00014236,2]
[408900412,1774417842484,-151.0,0.00014289,2]
[408900413,1774417842493,-181.08010149,0.00014289,2]
[408900414,1774417842503,-200.0,0.00014289,2]
[408900415,1774417842512,-500.0,0.00014291,2]
[408900416,1774417842522,-151.0,0.00014291,2]
[408900417,1774417842531,-980.08,0.00014302,2]
[408900418,1774417842540,-520.54835623,0.00014378,2]
[408900419,1774417842549,-500.0,0.00014378,2]
[408900420,1774417842559,-535.26,0.00014378,2]
[408900421,1774417842567,-1567.0,0.000144,2]
[408900422,1774417842577,-5374.22770706,0.00014454,2]
[408900423,1774417842586,-1500.0,0.00014468,2]
[408900424,1774417842595,-1500.0,0.00014468,2]
[408900425,1774417842604,-7688.14588221,0.00014496,2]
[408900426,1774417842613,-209.298603,0.00014504,7]
[408900427,1774417842623,-9999.99,0.00014504,2]
[408900428,1774417842632,-3218.51,0.00014504,2]
[408900429,1774417842641,-5360.74,0.00014504,2]
[408900430,1774417842650,-150.99,0.00014504,2]
[408900431,1774417842659,-255.0,0.00014506,2]
[408900432,1774417842668,-162.037627,0.00014539,7]
[408900433,1774417842678,-384.45811669,0.00014568,2]
[408900434,1774417842687,-430.54660974,0.00014568,2]
[408900435,1774417842696,-1500.0,0.00014568,2]
[408900436,1774417842705,-980.08,0.00014576,2]
[408900437,1774417842714,-1680.0,0.00014626,2]
[408900438,1774417842723,-158.652186,0.00014711,2]
[408900439,1774417842733,-158.652186,0.00014711,2]
[408900440,1774417842743,-158.652186,0.00014711,2]
[408900441,1774417842752,-158.652186,0.00014711,2]
[408900442,1774417842761,-151.0,0.00014711,2]
[408900443,1774417842770,-151.0,0.00014711,2]
[408900444,1774417842779,-380.414142,0.00014711,2]
[408900445,1774417842788,-380.414142,0.00014711,2]
[408900446,1774417842797,-380.414142,0.00014711,2]
[408900447,1774417842807,-380.414142,0.00014711,2]
[408900448,1774417842816,-1878.14,0.00014711,2]
[408900449,1774417842825,-5374.22770706,0.00014743,2]
[408900450,1774417842834,-287.486113,0.00014757,7]
[408900451,1774417842843,-7688.14588221,0.00014777,2]
[408900452,1774417842852,-151.0,0.00014784,2]
[408900453,1774417842862,-301.565904,0.00014784,2]
[408900454,1774417842871,-301.565904,0.00014784,2]
[408900455,1774417842880,-301.565904,0.00014784,2]
[408900456,1774417842890,-151.0,0.00014784,2]
[408900457,1774417842899,-301.565904,0.00014784,2]
[408900458,1774417842908,-154.26142664,0.0001479,2]
[408900459,1774417842917,-500.0,0.000148,2]
[408900460,1774417842927,-500.48528064,0.000148,2]
[408900461,1774417842936,-500.0,0.000148,2]
[408900462,1774417842946,-151.0,0.000148,2]
[408900463,1774417842956,-151.0,0.000148,2]
[408900464,1774417842967,-151.0,0.000148,2]
[408900465,1774417842977,-283.627127,0.000148,2]
[408900466,1774417842986,-4562.068,0.00014836,2]
[408900467,1774417842996,-178.87,0.00014836,2]
[408900468,1774417843006,-432.60864,0.00014836,2]
[408900469,1774417843015,-432.60864,0.00014836,2]
[408900470,1774417843024,-432.60864,0.00014836,2]
[408900471,1774417843034,-432.60864,0.00014836,2]
[408900472,1774417843045,-151.0,0.00014837,2]
[408900473,1774417843054,-187.78006525,0.00014837,2]
[408900474,1774417843063,-200.0,0.00014837,2]
[408900475,1774417843072,-190.0,0.0001484,2]
[408900476,1774417843082,-2726.2,0.00014843,2]
[408900478,1774417843091,-538.0,0.00014846,5]
[408900480,1774417843100,-980.08,0.0001485,2]
[408900482,1774417843109,-190.0,0.00014896,2]
[408900484,1774417843118,-600.0,0.000149,5]
[408900486,1774417843127,-294.2387054,0.00014911,2]
[408900488,1774417843136,-500.0,0.00014917,2]
[408900490,1774417843146,-156.0,0.00014946,2]
[408900492,1774417843155,-156.0,0.00014946,2]
[408900496,1774417843164,-156.0,0.00014946,2]
[408900498,1774417843173,-168.76883123,0.00014946,2]
[408900502,1774417843183,-500.0,0.00014959,2]
[408900504,1774417843192,-300.0,0.00015,2]
[408900506,1774417843201,-500.0,0.00015,2]
[408900508,1774417843210,-502.93024548,0.00015,2]
[408900510,1774417843219,-500.0,0.00015,2]
[408900512,1774417843228,-500.0,0.00015,2]
[408900514,1774417843237,-500.0,0.00015,2]
[408900516,1774417843246,-349.49866437,0.00015,2]
[408900518,1774417843254,-500.0,0.00015,2]
[408900519,1774417843263,-500.0,0.00015,2]
[408900520,1774417843272,-979.16666667,0.00015,2]
[408900521,1774417843281,-160.0,0.00015,2]
[408900522,1774417843290,-151.0,0.00015009,2]
[408900523,1774417843299,-393.060209,0.00015009,2]
[408900524,1774417843308,-393.060209,0.00015009,2]
[408900525,1774417843317,-393.060209,0.00015009,2]
[408900526,1774417843326,-177.909961,0.00015009,2]
[408900527,1774417843335,-177.909961,0.00015009,2]
[408900528,1774417843344,-393.060209,0.00015009,2]
[408900529,1774417843353,-177.909961,0.00015009,2]
[408900530,1774417843362,-177.909961,0.00015009,2]
[408900531,1774417843370,-819.932307,0.00015009,2]
[408900532,1774417843379,-819.932307,0.00015009,2]
[408900533,1774417843388,-819.932307,0.00015009,2]
[408900534,1774417843398,-819.932307,0.00015009,2]
[408900535,1774417843407,-190.0,0.00015016,2]
[408900536,1774417843416,-1502.50352387,0.00015016,2]
[408900537,1774417843425,-2000.0,0.00015016,2]
[408900538,1774417843435,-418.01,0.00015023,2]
[408900539,1774417843444,-383.15,0.00015023,2]
[408900540,1774417843453,-5374.22770706,0.00015032,2]
[408900541,1774417843463,-7688.14588221,0.00015058,2]
[408900543,1774417843472,-407.9868591,0.00015067,2]
[408900545,1774417843482,-500.0,0.00015067,2]
[408900546,1774417843492,-500.0,0.00015088,2]
[408900547,1774417843502,-500.0,0.00015089,2]
[408900548,1774417843511,-500.0,0.00015089,2]
[408900549,1774417843520,-500.0,0.00015089,2]
[408900550,1774417843529,-500.0,0.00015089,2]
[408900551,1774417843538,-500.0,0.00015089,2]
[408900552,1774417843547,-500.0,0.00015089,2]
[408900553,1774417843555,-501.96682741,0.00015089,2]
[408900554,1774417843564,-500.0,0.00015089,2]
[408900555,1774417843573,-500.0,0.00015089,2]
[408900556,1774417843583,-500.0,0.00015089,2]
[408900557,1774417843592,-500.0,0.00015089,2]
[408900558,1774417843601,-500.0,0.00015089,2]
[408900559,1774417843610,-3546.8541142,0.00015095,2]
[408900560,1774417843619,-465.98930222,0.000151,2]
[408900561,1774417843628,-306.0,0.000151,2]
[408900562,1774417843637,-500.0,0.00015108,2]
[408900563,1774417843646,-200.0,0.00015108,2]
[408900564,1774417843655,-1000.0,0.00015116,2]
[408900565,1774417843664,-6848.4463556,0.00015122,2]
[408900566,1774417843673,-980.08,0.00015124,2]
[408900567,1774417843683,-190.0,0.0001517,2]
[408900568,1774417843692,-5325.68196751,0.00015199,2]
[408900569,1774417843701,-350.0,0.00015215,2]
[408900570,1774417843711,-5888.0,0.00015215,2]
[408900572,1774417843720,-500.0,0.00015216,2]
[408900574,1774417843729,-3231.0,0.00015247,2]
[408900576,1774417843739,-350.0,0.00015263,2]
[408900578,1774417843748,-197.2313,0.000153,2]
[408900579,1774417843757,-900.0,0.000153,5]
[408900580,1774417843766,-999.0,0.000153,2]
[408900581,1774417843776,-312.0,0.000153,2]
[408900582,1774417843785,-5374.22770706,0.00015322,2]
[408900583,1774417843795,-7688.14588221,0.00015338,2]
[408900584,1774417843804,-1000.0,0.00015348,2]
[408900585,1774417843814,-1000.0,0.00015348,2]
[408900586,1774417843823,-383.15,0.0001538,2]
[408900587,1774417843832,-414.38,0.0001538,2]